bitfinex-derivatives/quotes_ETHF0:USTF0_20241004
["timestamp","ask_amount","ask_price","bid_price","bid_amount"]
[1728031919822,0.41915,2385.9,2385.8,0.82245]
[1728031920436,0.41915,2385.9,2385.7,0.3905]
[1728031920437,8.909,2385.9,2385.7,0.3905]
[1728031920726,0.41921,2385.6,2385.5,0.41921]
[1728031920936,1.04796,2385.8,2385.4,0.84262]
[1728031921320,0.41921,2385.6,2385.5,0.41922]
[1728031922023,0.41922,2385.5,2385.4,0.84262]
[1728031922227,1.04796,2385.8,2385.4,0.4234]
[1728031922533,0.41922,2385.5,2385.4,0.84262]
[1728031922722,0.41922,2385.5,2385.4,0.4234]
[1728031923124,0.41922,2385.5,2385.4,0.84263]
[1728031924037,0.41,2385.6,2385.4,1.9334]
[1728031924229,0.8292,2385.6,2385.5,0.41922]
[1728031924631,0.41,2385.6,2385.4,1.9334]
[1728031924832,0.41922,2385.5,2385.4,2.35262]
[1728031926038,0.41,2385.6,2385.4,1.9334]
[1728031926340,0.41921,2385.6,2385.5,0.4192]
[1728031927938,1.46573,2385.8,2385.4,1.9334]
[1728031928137,0.41922,2385.5,2385.4,2.35262]
[1728031929837,0.41922,2385.5,2385.4,1.9334]
[1728031930238,0.41922,2385.5,2385.4,2.35263]
[1728031930435,0.41922,2385.5,2385.4,1.9334]
[1728031930634,0.41922,2385.5,2385.4,2.35263]
[1728031931142,0.41922,2385.5,2385.4,0.4234]
[1728031931439,1.51,2385.5,2385.1,3.2078]
[1728031931744,0.41927,2385.2,2385.1,3.62708]
[1728031931938,0.41927,2385.2,2385.1,3.62709]
[1728031932139,0.41927,2385.2,2385.1,3.2078]
[1728031932450,0.41929,2385.1,2385.0,0.4004]
[1728031933031,0.41929,2385.1,2385.0,0.8197]
[1728031933228,0.41929,2385.1,2385.0,0.4004]
[1728031933432,0.41929,2385.1,2385.0,0.8197]
[1728031938339,0.41932,2385.0,2384.8,0.41932]
[1728031938543,0.41932,2384.9,2384.8,0.3945]
[1728031938736,1.92932,2384.9,2384.8,0.3945]
[1728031939338,2.35482,2384.9,2384.8,0.3945]
[1728031941443,1.9355,2384.9,2384.5,2.363]
[1728031941741,0.41937,2384.6,2384.5,2.78238]
[1728031942242,0.41937,2384.7,2384.6,0.41937]
[1728031942443,0.41937,2384.7,2384.5,2.363]
[1728031942634,0.41937,2384.7,2384.6,0.41937]
[1728031943039,0.41935,2384.8,2384.5,2.363]
[1728031943347,0.41935,2384.8,2384.7,0.41936]
[1728031943547,0.41933,2384.9,2384.7,0.41936]
[1728031943748,0.41933,2384.9,2384.8,0.4224]
[1728031946551,0.41936,2384.7,2384.6,0.41937]
[1728031946750,0.41936,2384.7,2384.6,0.81567]
[1728031946948,3.6353,2385.0,2384.6,0.3963]
[1728031947142,0.41933,2384.9,2384.8,0.41933]
[1728031947346,0.41934,2384.8,2384.7,0.41935]
[1728031948751,5.1453,2385.0,2384.6,0.3963]
[1728031948954,1.04831,2384.9,2384.6,0.3963]
[1728031949155,0.41935,2384.8,2384.7,0.41935]
[1728031949855,0.41936,2384.7,2384.6,0.81566]
[1728031950152,1.04831,2384.9,2384.6,0.3963]
[1728031950354,0.41935,2384.8,2384.7,0.41935]
[1728031951244,6.19358,2385.0,2384.6,0.3963]
[1728031951245,5.1453,2385.0,2384.6,0.3963]
[1728031951445,5.1453,2385.0,2384.6,0.81566]
[1728031951446,0.41936,2384.7,2384.6,0.81566]
[1728031952653,0.41935,2384.8,2384.7,0.41935]
[1728031953665,1.04831,2384.9,2384.6,0.3963]
[1728031953954,0.41936,2384.7,2384.6,0.81566]
[1728031955057,0.41936,2384.7,2384.6,0.3963]
[1728031955651,0.41936,2384.7,2384.6,0.81567]
[1728031956555,0.41936,2384.7,2384.6,0.3963]
[1728031961555,0.41944,2384.3,2384.1,0.51645]
[1728031961863,0.41944,2384.3,2384.2,1.21744]
[1728031962957,1.04849,2384.5,2384.2,1.62954]
[1728031963460,0.41943,2384.3,2384.2,1.62954]
[1728031963960,0.41943,2384.3,2384.2,1.2101]
[1728031964754,0.41943,2384.3,2384.2,0.4121]
[1728031966558,0.41943,2384.3,2384.2,0.83154]
[1728031966959,5.76608,2385.0,2384.2,6.9266]
[1728031967163,5.76608,2385.0,2384.6,1.51]
[1728031967164,0.41936,2384.7,2384.6,1.51]
[1728031967363,0.41936,2384.7,2384.6,1.2145]
[1728031968566,0.41939,2384.5,2384.4,0.4044]
[1728031970566,0.41939,2384.5,2384.4,0.82381]
[1728031971169,0.41939,2384.5,2384.4,0.4044]
[1728031973067,1.04843,2384.7,2384.4,0.82379]
[1728031973364,1.51,2384.9,2384.5,0.41938]
[1728031973365,0.41938,2384.6,2384.5,0.41938]
[1728031973964,0.41938,2384.6,2384.4,0.82379]
[1728031974461,1.04837,2384.8,2384.4,0.4044]
[1728031974662,1.04837,2384.8,2384.5,0.41939]
[1728031974663,0.41938,2384.6,2384.5,0.41939]
[1728031974870,0.41939,2384.5,2384.4,0.4044]
[1728031976065,0.41939,2384.5,2384.4,0.82381]
[1728031976268,0.41939,2384.5,2384.4,0.4044]
[1728031977660,2.55832,2384.9,2384.5,0.41938]
[1728031977868,2.55832,2384.9,2384.4,4.598]
[1728031977869,0.41937,2384.7,2384.4,1.9144]
[1728031978172,0.41936,2384.7,2384.5,0.41938]
[1728031978763,2.55832,2384.9,2384.5,0.41938]
[1728031979162,1.51,2384.9,2384.4,1.9144]
[1728031979359,0.41939,2384.5,2384.4,2.3338]
[1728031979563,0.41939,2384.6,2384.4,2.3338]
[1728031980369,0.41939,2384.5,2384.4,0.8238]
[1728031980565,0.41939,2384.5,2384.4,0.4044]
[1728031980767,0.41939,2384.5,2384.4,4.598]
[1728031980982,0.41938,2384.6,2384.4,5.0174]
[1728031981167,0.41938,2384.6,2384.4,0.8238]
[1728031981674,0.41939,2384.5,2384.4,0.8238]
[1728031981876,2.55841,2384.7,2384.4,0.8238]
[1728031982067,0.41939,2384.5,2384.4,0.8238]
[1728031982570,0.41939,2384.5,2384.4,4.598]
[1728031983172,0.41939,2384.5,2384.4,0.4044]
[1728031984571,0.41939,2384.5,2384.4,4.598]
[1728031984772,0.41939,2384.5,2384.4,0.4044]
[1728031986471,0.41939,2384.5,2384.4,4.598]
[1728031986673,0.41939,2384.5,2384.4,0.4044]
[1728031987867,3.62719,2384.5,2384.4,0.4044]
[1728031993169,0.41946,2384.1,2384.0,3.3048]
[1728031993365,0.41946,2384.1,2384.0,3.6144]
[1728031996074,0.41946,2384.1,2383.9,0.3899]
[1728031996075,0.41948,2384.0,2383.9,0.3899]
[1728031996669,0.41948,2384.0,2383.7,3.6297]
[1728031996670,0.41951,2383.8,2383.7,0.4219]
[1728031997383,0.41954,2383.7,2383.5,0.8245]
[1728031997579,0.41954,2383.7,2383.5,1.222]
[1728031998782,0.3949,2383.8,2383.5,1.222]
[1728031998982,0.41953,2383.7,2383.5,1.222]
[1728032000482,0.81443,2383.8,2383.5,1.64157]
[1728032000777,0.41955,2383.6,2383.5,1.222]
[1728032002777,0.3949,2383.8,2383.5,1.222]
[1728032002979,0.81442,2383.8,2383.5,3.15156]
[1728032003378,0.41954,2383.7,2383.5,2.732]
[1728032003879,0.41954,2383.7,2383.5,3.15156]
[1728032004084,0.41954,2383.7,2383.5,2.732]
[1728032004285,0.3949,2383.8,2383.5,2.732]
[1728032004584,0.41955,2383.6,2383.5,2.732]
[1728032005978,3.2078,2383.9,2383.5,2.732]
[1728032006171,3.689,2384.3,2383.7,4.7178]
[1728032006376,3.62724,2384.3,2384.1,1.92946]
[1728032006571,5.13724,2384.3,2384.2,0.8408]
[1728032006788,5.13724,2384.3,2384.2,0.4287]
[1728032007077,5.13724,2384.3,2383.8,0.4121]
[1728032007078,8.9122,2384.3,2383.8,0.4121]
[1728032007382,0.4195,2383.9,2383.8,0.8408]
[1728032008874,0.4195,2383.9,2383.8,0.4287]
[1728032009482,1.51,2384.0,2383.8,0.4287]
[1728032009483,1.51,2384.1,2383.8,0.4287]
[1728032009680,4.2564,2384.3,2384.1,0.41945]
[1728032009681,3.62723,2384.3,2384.1,0.41945]
[1728032009978,3.62723,2384.3,2384.0,1.51]
[1728032009979,3.2078,2384.3,2384.2,0.82354]
[1728032011085,4.7178,2384.3,2384.2,0.4041]
[1728032011287,5.13723,2384.3,2384.2,0.4041]
[1728032012181,3.2078,2384.3,2384.2,0.4041]
[1728032012487,3.62723,2384.3,2384.2,0.4041]
[1728032013782,3.2078,2384.3,2384.2,0.4041]
[1728032013981,3.62723,2384.3,2384.2,0.4041]
[1728032015584,0.41943,2384.3,2384.2,0.4041]
[1728032016392,3.2078,2384.5,2384.2,0.4041]
[1728032016694,0.41943,2384.3,2384.2,0.4041]
[1728032018893,1.92943,2384.3,2384.2,0.4041]
[1728032023495,0.41943,2384.3,2384.2,0.4041]
[1728032023698,3.2078,2384.5,2384.2,0.4041]
[1728032023994,0.41941,2384.4,2384.3,0.4101]
[1728032024795,1.92941,2384.4,2384.3,0.4101]
[1728032025992,0.41941,2384.4,2384.3,0.4101]
[1728032026698,0.4194,2384.5,2384.3,0.82952]
[1728032027190,0.41938,2384.6,2384.4,0.4194]
[1728032027397,0.41938,2384.6,2384.5,0.7995]
[1728032029000,0.3975,2384.7,2384.5,0.7995]
[1728032029198,0.41936,2384.7,2384.5,1.21889]
[1728032029400,0.8202,2385.0,2384.5,0.7995]
[1728032029695,0.41935,2384.8,2384.6,0.41937]
[1728032029904,0.41935,2384.8,2384.7,0.4225]
[1728032033204,0.41935,2384.8,2384.5,1.21888]
[1728032033205,0.41937,2384.6,2384.5,0.7995]
[1728032041209,0.41937,2384.7,2384.5,1.21889]
[1728032041413,0.41937,2384.7,2384.5,0.7995]
[1728032041707,0.41937,2384.6,2384.5,0.7995]
[1728032043110,0.41936,2384.7,2384.5,1.21888]
[1728032043710,3.2078,2384.8,2384.5,0.7995]
[1728032043906,0.41937,2384.6,2384.5,0.7995]
[1728032045020,0.41937,2384.7,2384.5,1.21889]
[1728032045209,0.41937,2384.6,2384.5,0.7995]
[1728032045403,4.25616,2384.8,2384.5,0.7995]
[1728032045404,3.2078,2384.8,2384.5,0.7995]
[1728032045605,1.04832,2384.9,2384.5,0.7995]
[1728032045802,1.04832,2384.9,2384.5,1.21888]
[1728032046005,0.41937,2384.6,2384.5,0.7995]
[1728032049919,4.25614,2384.9,2384.5,1.21889]
[1728032049920,3.2078,2384.9,2384.5,1.21889]
[1728032050114,0.41935,2384.8,2384.6,0.41937]
[1728032050311,0.41935,2384.8,2384.7,0.4195]
[1728032050312,0.41934,2384.8,2384.7,0.4195]
[1728032052114,3.2078,2384.9,2384.7,0.4195]
[1728032052317,0.41934,2384.8,2384.7,0.4195]
[1728032054318,0.41934,2384.8,2384.7,0.83886]
[1728032054722,3.2078,2384.9,2384.7,0.4195]
[1728032054923,0.41934,2384.8,2384.7,0.83885]
[1728032055324,3.2078,2384.9,2384.8,0.41934]
[1728032055620,3.2078,2384.9,2384.7,0.4195]
[1728032055621,0.41934,2384.8,2384.7,0.83886]
[1728032058218,0.41934,2384.8,2384.7,0.4195]
[1728032060125,0.41937,2384.6,2384.5,0.3974]
[1728032060327,0.41937,2384.6,2384.5,0.8201]
[1728032060526,0.41937,2384.6,2384.5,5.43309]
[1728032061921,3.2078,2384.9,2384.5,5.0137]
[1728032062126,0.41937,2384.6,2384.5,1.23949]
[1728032062528,0.41937,2384.6,2384.5,5.0137]
[1728032063125,0.41937,2384.6,2384.5,5.43309]
[1728032063522,0.41937,2384.6,2384.5,1.23949]
[1728032065825,0.41937,2384.6,2384.5,1.2486]
[1728032066628,0.41943,2384.3,2384.2,0.41943]
[1728032066840,0.41943,2384.3,2384.2,1.65453]
[1728032069029,0.41943,2384.3,2384.2,1.65454]
[1728032069731,0.41942,2384.4,2384.2,1.65454]
[1728032071235,0.41943,2384.3,2384.2,1.65454]
[1728032072732,0.41943,2384.4,2384.2,1.65454]
[1728032072933,1.04851,2384.5,2384.2,1.65454]
[1728032073131,0.41941,2384.4,2384.2,1.65454]
[1728032073538,0.41942,2384.4,2384.2,1.65454]
[1728032073734,1.04851,2384.5,2384.2,1.2351]
[1728032074035,4.93939743,2384.6,2384.2,1.2351]
[1728032074242,0.41939,2384.5,2384.3,0.41942]
[1728032074735,4.93939743,2384.6,2384.2,1.65453]
[1728032074939,0.41941,2384.4,2384.2,1.65453]
[1728032075538,0.41943,2384.3,2384.2,1.2351]
[1728032076039,0.41942,2384.4,2384.2,5.84894]
[1728032076336,0.41942,2384.4,2384.2,1.65454]
[1728032077040,0.41942,2384.4,2384.2,1.2351]
[1728032077937,0.41943,2384.3,2384.2,1.2351]
[1728032078238,0.41943,2384.3,2384.2,0.8472]
[1728032078841,1.46782,2384.6,2384.2,5.46103]
[1728032079147,0.4194,2384.5,2384.3,0.81852]
[1728032079441,0.41941,2384.4,2384.3,0.3991]
[1728032095065,0.41943,2384.3,2384.2,0.8472]
[1728032095452,0.41943,2384.3,2384.2,0.4285]
[1728032101460,8.21959743,2384.6,2383.9,3.6089]
[1728032101662,0.41946,2384.1,2384.0,0.4279]
[1728032103662,0.41946,2384.1,2383.6,0.51654]
[1728032103663,0.4195,2383.9,2383.6,0.51654]
[1728032103860,1.46034,2384.2,2383.7,0.4127]
[1728032104060,1.04873,2384.0,2383.7,0.4127]
[1728032104254,0.41951,2383.8,2383.7,0.4127]
[1728032105463,4.25653,2384.0,2383.4,3.62737]
[1728032105661,0.41956,2383.6,2383.5,0.4127]
[1728032105856,0.4926,2383.9,2383.5,0.4127]
[1728032105857,0.41954,2383.7,2383.5,0.83226]
[1728032106052,0.41954,2383.7,2383.6,0.396]
[1728032108158,0.3944,2383.8,2383.6,0.396]
[1728032108464,0.41953,2383.7,2383.6,0.81554]
[1728032109069,0.41953,2383.7,2383.6,0.396]
[1728032109365,0.41953,2383.7,2383.6,0.81555]
[1728032109559,3.2078,2384.0,2383.5,0.83226]
[1728032109763,0.41955,2383.7,2383.5,0.4127]
[1728032109961,0.41955,2383.7,2383.5,0.83225]
[1728032110164,0.41955,2383.7,2383.6,0.41955]
[1728032110356,0.4165,2383.8,2383.6,0.41955]
[1728032110561,0.83603,2383.8,2383.7,0.3871]
[1728032111164,0.41953,2383.8,2383.7,0.3871]
[1728032111360,0.41953,2383.8,2383.7,0.80663]
[1728032112268,0.41953,2383.8,2383.7,0.3871]
[1728032113468,0.41955,2383.6,2383.5,0.4127]
[1728032116173,0.41955,2383.6,2383.5,0.83227]
[1728032116364,0.41955,2383.6,2383.5,0.4127]
[1728032119674,3.62734,2383.7,2383.6,0.41955]
[1728032119864,0.41952,2383.8,2383.7,0.41953]
[1728032120471,0.41952,2383.8,2383.5,0.4127]
[1728032120668,4.25652,2384.0,2383.6,0.41954]
[1728032120874,3.2078,2384.0,2383.5,0.4127]
[1728032121171,0.41955,2383.6,2383.5,0.83225]
[1728032121375,1.04877,2383.9,2383.5,0.83225]
[1728032121580,0.41955,2383.6,2383.5,0.4127]
[1728032123981,0.41955,2383.6,2383.5,0.83226]
[1728032124481,0.41955,2383.6,2383.5,0.4127]
[1728032124681,0.41955,2383.6,2383.5,0.83227]
[1728032125585,0.41955,2383.6,2383.5,0.83226]
[1728032126280,0.41952,2383.8,2383.7,0.41952]
[1728032126482,3.2078,2384.0,2383.5,0.83225]
[1728032126483,1.46825,2383.9,2383.5,0.83225]
[1728032126678,0.41954,2383.7,2383.6,0.41954]
[1728032130385,0.41955,2383.6,2383.5,0.4127]
[1728032130685,0.41955,2383.6,2383.5,0.83227]
[1728032130878,0.41955,2383.6,2383.5,0.4127]
[1728032137080,4.1952,2383.6,2383.4,0.3915]
[1728032137286,0.4196,2383.3,2383.2,0.4106]
[1728032137781,0.4196,2383.3,2383.0,0.8048]
[1728032137782,0.4193,2383.3,2383.0,0.8048]
[1728032137990,0.41964,2383.1,2383.0,0.8048]
[1728032138192,0.41964,2383.1,2383.0,0.4105]
[1728032142089,0.41965,2383.1,2382.9,0.83027]
[1728032143084,0.41965,2383.1,2383.0,0.41966]
[1728032143794,0.41963,2383.2,2383.0,0.41966]
[1728032144285,0.4193,2383.3,2382.9,0.4106]
[1728032144482,0.3987,2383.5,2382.9,0.4106]
[1728032144683,0.81828,2383.5,2383.3,0.4196]
[1728032144892,0.81828,2383.5,2383.4,0.8295]
[1728032145496,4.5939,2383.5,2383.1,0.41963]
[1728032145691,4.5939,2383.5,2383.2,0.4088]
[1728032145692,0.41961,2383.3,2383.2,0.4088]
[1728032146993,13.4038,2383.3,2382.7,3.3048]
[1728032147193,0.41969,2382.9,2382.8,0.4151]
[1728032148890,3.62749,2382.9,2382.8,0.4151]
[1728032149285,0.41969,2382.9,2382.8,0.4151]
[1728032152887,3.62749,2382.9,2382.8,0.4151]
[1728032153295,7.82429,2382.9,2382.8,0.4151]
[1728032153496,0.41973,2382.6,2382.5,0.3866]
[1728032156893,3.2078,2382.9,2382.5,0.3866]
[1728032157097,0.41971,2382.7,2382.5,0.3866]
[1728032157698,0.4197,2382.8,2382.5,0.80634]
[1728032157890,3.2078,2382.9,2382.5,0.80634]
[1728032158092,0.41971,2382.7,2382.5,0.3866]
[1728032158799,3.2078,2382.9,2382.5,0.3866]
[1728032158994,0.41972,2382.7,2382.5,0.80634]
[1728032159198,1.46001,2383.1,2382.5,0.3866]
[1728032159496,1.04915,2383.0,2382.5,0.80633]
[1728032159702,0.41971,2382.7,2382.5,0.80633]
[1728032159901,1.04915,2383.0,2382.5,0.3866]
[1728032160195,0.4197,2382.8,2382.6,0.41972]
[1728032160595,0.4197,2382.8,2382.7,0.4068]
[1728032161101,0.41968,2382.9,2382.7,0.8265]
[1728032161402,0.41966,2383.0,2382.8,0.81548]
[1728032161594,0.41966,2383.0,2382.9,0.4119]
[1728032168501,0.41969,2382.8,2382.7,0.4068]
[1728032171206,3.62749,2382.9,2382.7,0.4068]
[1728032171404,3.62749,2382.9,2382.8,0.3931]
[1728032172702,3.2078,2382.9,2382.7,0.4068]
[1728032172907,0.41969,2382.8,2382.7,0.4068]
[1728032175909,3.2801,2382.9,2382.5,0.3931]
[1728032176108,0.41973,2382.6,2382.5,0.3931]
[1728032176410,3.62753,2382.6,2382.5,0.3931]
[1728032181011,3.2078,2382.6,2382.5,0.3931]
[1728032181211,3.2078,2382.6,2382.5,5.00964]
[1728032181410,3.2078,2382.6,2382.5,4.5899]
[1728032181612,3.2078,2382.6,2382.5,5.00964]
[1728032182010,0.41967,2382.9,2382.6,0.41972]
[1728032182213,0.41967,2382.9,2382.7,0.3921]
[1728032182515,0.41967,2382.9,2382.8,0.4055]
[1728032184212,3.2078,2383.0,2382.8,0.4055]
[1728032184412,3.2078,2383.0,2382.9,0.83337]
[1728032185115,3.2078,2383.0,2382.9,0.4137]
[1728032185517,3.2078,2383.0,2382.9,0.83337]
[1728032185712,3.2078,2383.0,2382.9,5.03017]
[1728032185910,3.2078,2383.0,2382.9,0.83337]
[1728032186216,3.2078,2383.0,2382.9,5.03017]
[1728032187719,3.2078,2383.0,2382.9,0.83337]
[1728032188115,3.2078,2383.0,2382.9,0.4137]
[1728032188522,3.2078,2383.0,2382.9,0.83337]
[1728032188910,3.2078,2383.0,2382.9,0.4137]
[1728032189113,3.62746,2383.0,2382.9,0.4137]
[1728032194817,3.2078,2383.0,2382.8,0.4055]
[1728032195013,0.41967,2382.9,2382.8,0.4055]
[1728032203722,0.41967,2382.9,2382.7,0.3921]
[1728032203921,3.2078,2383.0,2382.7,0.8139]
[1728032204125,0.41969,2382.8,2382.7,0.8139]
[1728032206615,0.41969,2382.8,2382.7,0.3921]
[1728032212128,3.62749,2382.8,2382.7,0.3921]
[1728032214630,0.41969,2382.8,2382.7,0.3921]
[1728032226640,3.62749,2382.8,2382.7,0.3921]
[1728032227834,3.2078,2382.8,2382.7,5.00861]
[1728032228136,3.62749,2382.8,2382.7,5.00861]
[1728032228340,3.2078,2382.8,2382.7,5.00861]
[1728032228940,3.62749,2382.8,2382.7,0.81181]
[1728032230235,3.62749,2382.8,2382.7,0.3921]
[1728032230438,3.62749,2382.8,2382.7,0.81181]
[1728032230838,3.62749,2382.8,2382.7,0.3921]
[1728032231143,0.41969,2382.8,2382.7,0.81181]
[1728032231344,0.41969,2382.8,2382.7,0.8118]
[1728032231939,0.41969,2382.8,2382.7,0.3921]
[1728032240647,3.62749,2382.8,2382.7,0.3921]
[1728032242354,0.41969,2382.8,2382.7,0.3921]
[1728032245550,6.06075743,2383.0,2382.7,0.3921]
[1728032245551,4.93939743,2383.0,2382.7,4.5889]
[1728032245757,0.41964,2383.1,2382.9,0.41967]
[1728032245946,0.41964,2383.1,2383.0,1.2504]
[1728032249553,0.41964,2383.1,2383.0,0.4216]
[1728032249859,5.77853743,2383.1,2383.0,0.4216]
[1728032251263,5.35903743,2383.1,2383.0,0.4216]
[1728032255553,0.41964,2383.1,2383.0,0.4216]
[1728032256661,8.14719743,2383.2,2382.5,0.4088]
[1728032256856,0.41971,2382.8,2382.6,1.22052]
[1728032257361,0.41971,2382.8,2382.6,5.41732]
[1728032258064,0.41968,2382.9,2382.7,0.4197]
[1728032258362,0.41968,2382.9,2382.6,4.9976]
[1728032258363,0.41966,2383.0,2382.8,0.41968]
[1728032258661,0.41966,2383.0,2382.9,0.3959]
[1728032258863,0.41966,2383.0,2382.9,0.8163]
[1728032261665,0.41966,2383.0,2382.9,1.23597]
[1728032261967,0.41966,2383.0,2382.9,0.8163]
[1728032262765,5.35905743,2383.0,2382.9,0.8163]
[1728032263067,4.93939743,2383.0,2382.9,1.23597]
[1728032263263,5.35905743,2383.0,2382.9,1.23597]
[1728032263668,5.35905743,2383.0,2382.9,0.8163]
[1728032266172,5.35905743,2383.0,2382.9,1.23597]
[1728032266471,5.35905743,2383.0,2382.9,0.8163]
[1728032270774,0.41966,2383.0,2382.9,0.8163]
[1728032270969,0.41966,2383.0,2382.9,1.23597]
[1728032272072,0.41966,2383.0,2382.9,1.23596]
[1728032273375,0.41965,2383.1,2383.0,0.41965]
[1728032273580,0.41965,2383.1,2383.0,0.4073]
[1728032273777,0.41965,2383.1,2383.0,0.82696]
[1728032275783,9.60019743,2383.4,2383.1,0.41963]
[1728032275784,0.41963,2383.2,2383.1,0.41963]
[1728032275986,4.6608,2383.4,2383.0,0.4073]
[1728032276170,0.41964,2383.1,2383.0,0.82694]
[1728032276775,0.41964,2383.1,2383.0,5.02294]
[1728032277379,0.41963,2383.2,2383.1,0.41963]
[1728032277575,0.41964,2383.1,2383.0,0.82694]
[1728032277786,0.41963,2383.2,2383.1,0.41964]
[1728032278281,0.41964,2383.1,2383.0,0.82694]
[1728032278675,0.41964,2383.1,2383.0,5.02294]
[1728032279281,0.41963,2383.2,2383.1,0.41964]
[1728032279684,0.41963,2383.2,2383.0,0.4073]
[1728032279685,5.98840743,2383.3,2383.0,0.4073]
[1728032279879,0.41964,2383.1,2383.0,0.82695]
[1728032280276,4.93939743,2383.3,2383.0,4.6033]
[1728032280582,0.41963,2383.2,2383.1,0.41962]
[1728032281082,4.93939743,2383.3,2383.0,0.4073]
[1728032281288,0.41962,2383.2,2383.1,0.41963]
[1728032281689,4.93939743,2383.3,2383.0,0.4073]
[1728032281985,0.41964,2383.1,2383.0,0.82694]
[1728032282184,0.41963,2383.2,2383.1,0.41963]
[1728032282484,0.41963,2383.2,2383.0,0.82694]
[1728032282682,4.93939743,2383.3,2383.0,0.82694]
[1728032283085,0.41964,2383.1,2383.0,0.82694]
[1728032284586,4.93939743,2383.3,2383.0,0.82694]
[1728032284891,0.41964,2383.1,2383.0,0.4073]
[1728032285392,0.41964,2383.1,2383.0,0.82696]
[1728032285691,0.41964,2383.1,2383.0,0.4073]
[1728032286382,0.0721,2383.2,2382.9,0.3959]
[1728032286583,0.41966,2383.0,2382.9,0.81557]
[1728032286986,0.41966,2383.0,2382.9,0.3959]
[1728032287192,0.4196,2383.3,2383.1,0.41963]
[1728032287393,4.66079,2383.4,2382.9,0.3959]
[1728032287591,0.41963,2383.2,2383.0,0.41964]
[1728032287788,0.41963,2383.2,2383.1,0.81124]
[1728032288190,0.41963,2383.2,2383.1,0.3916]
[1728032290903,0.41964,2383.1,2383.0,0.41965]
[1728032291197,0.41964,2383.1,2383.0,0.83015]
[1728032292296,0.41962,2383.2,2383.1,0.41963]
[1728032292495,0.41961,2383.3,2383.0,0.4105]
[1728032292808,0.41963,2383.2,2383.1,0.41962]
[1728032293293,0.41963,2383.2,2383.1,4.61562]
[1728032293903,0.41962,2383.2,2383.1,4.61563]
[1728032296000,0.41961,2383.3,2383.2,0.41961]
[1728032296403,0.41962,2383.2,2383.1,0.82183]
[1728032296701,0.41962,2383.2,2383.1,0.82182]
[1728032296896,1.04898,2383.4,2383.1,4.5982]
[1728032297105,0.41961,2383.3,2383.2,0.41961]
[1728032298105,0.41962,2383.2,2383.1,0.82183]
[1728032298596,0.41962,2383.2,2383.1,5.01783]
[1728032298995,0.41962,2383.2,2383.1,0.82183]
[1728032300506,0.41962,2383.3,2383.2,0.41961]
[1728032300801,0.41962,2383.2,2383.1,0.82183]
[1728032301003,5.36349395,2383.2,2383.1,0.82183]
[1728032302207,4.94387395,2383.2,2383.1,0.82183]
[1728032302399,4.94387395,2383.2,2383.1,5.01783]
[1728032303000,5.36348395,2383.3,2383.2,0.41962]
[1728032303403,5.36348395,2383.3,2383.2,4.61562]
[1728032303610,5.36348395,2383.3,2383.2,5.03362]
[1728032305704,4.94387395,2383.3,2383.2,5.03362]
[1728032306304,4.94387395,2383.4,2383.3,0.4196]
[1728032306703,4.94387395,2383.4,2383.3,4.6156]
[1728032306704,0.41958,2383.4,2383.3,4.6156]
[1728032306906,0.4196,2383.3,2383.2,0.418]
[1728032307110,0.4196,2383.3,2383.2,5.03362]
[1728032307312,0.41962,2383.2,2383.1,3.2078]
[1728032307514,0.41962,2383.2,2383.1,3.62744]
[1728032309314,0.41962,2383.3,2383.2,0.41961]
[1728032310214,0.41963,2383.2,2383.1,0.41963]
[1728032310511,0.41964,2383.1,2383.0,0.83014]
[1728032310916,0.41964,2383.1,2383.0,5.02614]
[1728032314217,0.41964,2383.1,2383.0,0.4105]
[1728032317116,0.41966,2383.0,2382.9,0.4068]
[1728032317327,0.41966,2383.0,2382.9,0.82646]
[1728032320610,3.2078,2383.1,2382.8,0.4047]
[1728032320824,0.41967,2382.9,2382.8,0.82439]
[1728032321521,0.41967,2382.9,2382.8,0.4047]
[1728032322214,0.41967,2382.9,2382.8,0.82439]
[1728032325428,0.41965,2383.1,2382.9,0.41967]
[1728032325626,0.41964,2383.1,2383.0,0.41965]
[1728032326027,0.41964,2383.1,2383.0,0.82375]
[1728032326922,0.41963,2383.2,2383.1,0.41963]
[1728032327519,0.41964,2383.1,2383.0,0.82375]
[1728032330033,1.45894,2383.3,2383.0,0.4041]
[1728032330334,1.43856,2383.5,2383.0,0.4041]
[1728032330528,0.41963,2383.2,2383.1,0.81633]
[1728032330738,0.41964,2383.1,2383.0,0.82375]
[1728032331533,0.41962,2383.2,2383.1,0.41964]
[1728032331732,0.41963,2383.2,2383.1,0.41963]
[1728032333522,5.36349395,2383.3,2383.2,0.41962]
[1728032334725,0.41963,2383.2,2383.1,0.41963]
[1728032334929,4.94387395,2383.3,2383.0,0.82375]
[1728032334930,0.41964,2383.1,2383.0,0.82375]
[1728032335830,5.47874084,2383.7,2383.1,4.196]
[1728032336026,5.47874084,2383.7,2383.0,9.6119]
[1728032336027,0.41953,2383.7,2383.2,1.04903]
[1728032336329,0.41955,2383.6,2383.4,0.41957]
[1728032336635,0.41955,2383.6,2383.5,0.4269]
[1728032336636,0.80985,2383.6,2383.5,0.4269]
[1728032337835,0.3903,2383.6,2383.5,0.4269]
[1728032338030,0.80985,2383.6,2383.5,0.4269]
[1728032338238,0.3903,2383.6,2383.5,0.4269]
[1728032338441,0.80985,2383.6,2383.5,0.4269]